[Event "Charlotte CC Fall GM-ALTO 2024"]
[Site "Charlotte"]
[Date "2024.11.25"]
[Round "7.3"]
[White "Stefanov, Emil"]
[Black "Griffith, Kyron"]
[Result "1/2-1/2"]
[ECO "D45"]
[WhiteElo "2362"]
[BlackElo "2407"]
[Annotator "RC"]
[PlyCount "232"]
[EventDate "2024.11.22"]
[EventType "tourn"]
[EventCountry "USA"]
[SourceTitle "playchess.com"]
[Source "ChessBase"]
[SourceQuality "1"]
[TimeControl "5400+30"]

1. d4 {[%emt 0:00:08]} Nf6 {[%emt 0:00:05]} 2. c4 {[%emt 0:00:07]} e6 {[%emt 0:00:06]} 3. Nf3 {[%emt 0:00:10]} d5 {[%emt 0:00:10]} 4. Nc3 {[%emt 0:00:09]} c6 {[%emt 0:00:21]} 5. e3 {[%emt 0:00:16]} a6 {[%emt 0:00:23]} 6. Bd2 {[%emt 0:00:10]} Nbd7 {[%emt 0:02:48]} 7. Rc1 {[%emt 0:03:31]} Bd6 {[%emt 0:01:59]} 8. Bd3 {[%emt 0:01:41]} dxc4 {[%emt 0:02:57]} 9. Bxc4 {[%emt 0:00:04]} e5 {[%emt 0:03:36]} 10. O-O {[%emt 0:10:24]} O-O {[%emt 0:00:32]} 11. h3 {[%emt 0:00:48]} Qe7 {[%emt 0:06:45]} 12. Qc2 {[%emt 0:01:17]} h6 {[%emt 0:06:45]} 13. Bb3 {[%emt 0:06:36]} Re8 {[%emt 0:14:52]} 14. Nh4 {[%emt 0:07:34]} Nf8 {[%emt 0:00:18]} 15. Nf5 {[%emt 0:01:25]} Bxf5 {[%emt 0:02:07]} 16. Qxf5 {[%emt 0:00:07]} g6 {[%emt 0:00:33]} 17. Qc2 {[%emt 0:03:31]} Kg7 {[%emt 0:01:04]} 18. d5 {[%emt 0:11:12]} c5 {[%emt 0:01:55]} 19. e4 {[%emt 0:04:13]} b5 {[%emt 0:01:02]} 20. Qb1 {[%emt 0:00:02]} c4 {[%emt 0:02:10]} 21. Bc2 {[%emt 0:00:01]} N8d7 {[%emt 0:00:44]} 22. Ne2 {[%emt 0:01:10]} Bb4 {[%emt 0:08:26]} 23. Be3 {[%emt 0:00:02]} Bc5 {[%emt 0:00:23]} 24. Bd2 {[%emt 0:00:09]} Bb4 {[%emt 0:00:10]} 25. Be3 {[%emt 0:00:09]} Bc5 {[%emt 0:00:18]} 26. Bd2 {[%emt 0:00:06]} Qd6 {[%emt 0:04:54]} 27. b4 {[%emt 0:06:31]} Bd4 {[%emt 0:04:41]} 28. a4 {[%emt 0:03:19]} Reb8 {[%emt 0:02:49]} 29. a5 {[%emt 0:00:12]} Rf8 {[%emt 0:02:04]} 30. Rcd1 {[%emt 0:03:01]} Rac8 {[%emt 0:01:33]} 31. Be1 {[%emt 0:03:53]} Ba7 {[%emt 0:00:15]} 32. Bc3 {[%emt 0:00:04]} Kh7 {[%emt 0:01:27]} 33. g3 {[%emt 0:08:10]} Nh5 {[%emt 0:01:48]} 34. Kg2 {[%emt 0:01:34]} Rce8 {[%emt 0:04:32]} 35. Ng1 {[%emt 0:07:06]} Kg8 {[%emt 0:02:20]} 36. Nf3 {[%emt 0:00:13]} g5 {[%emt 0:04:41]} 37. Nh2 {[%emt 0:02:18]} Qg6 {[%emt 0:01:22]} 38. Ng4 {[%emt 0:06:44]} Kh7 {[%emt 0:00:19]} 39. Kh2 {[%emt 0:05:44]} Nhf6 {[%emt 0:03:06]} 40. Rd2 {[%emt 0:03:18]} h5 {[%emt 0:06:11]} 41. Nxf6+ {[%emt 0:00:04]} Nxf6 {[%emt 0:00:16]} 42. Qb2 {[%emt 0:00:27]} Nd7 {[%emt 0:00:17]} 43. Bb1 {[%emt 0:02:03]} f6 {[%emt 0:00:31]} 44. f3 {[%emt 0:00:39]} Rg8 {[%emt 0:00:56]} 45. Rg2 {[%emt 0:00:07]} Qf7 {[%emt 0:00:47]} 46. Qd2 {[%emt 0:00:39]} Rg7 {[%emt 0:00:26]} 47. Bc2 {[%emt 0:00:23]} Reg8 {[%emt 0:00:45]} 48. Rd1 {[%emt 0:00:16]} Qe7 {[%emt 0:00:33]} 49. Re2 {[%emt 0:01:33]} Qd6 {[%emt 0:00:09]} 50. Kg2 {[%emt 0:00:26]} Kg6 {[%emt 0:00:42]} 51. Rh1 {[%emt 0:00:11]} Kf7 {[%emt 0:00:06]} 52. Kf1 {[%emt 0:00:08]} Nf8 {[%emt 0:00:48]} 53. Ke1 {[%emt 0:00:41]} Ng6 {[%emt 0:00:12]} 54. Kd1 {[%emt 0:01:02]} h4 {[%emt 0:00:08]} 55. g4 {[%emt 0:00:00]} Nf4 {[%emt 0:00:04]} 56. Kc1 {[%emt 0:01:40]} Rc8 {[%emt 0:00:47]} 57. Rhh2 {[%emt 0:00:18]} Bg1 {[%emt 0:01:00]} 58. Kb2 {[%emt 0:00:34]} Rgg8 {[%emt 0:00:53]} 59. Ka3 {[%emt 0:00:26]} Rc7 {[%emt 0:00:41]} 60. Rh1 {[%emt 0:00:08]} Bd4 {[%emt 0:00:37]} 61. Reh2 {[%emt 0:00:29]} Ba7 {[%emt 0:00:21]} 62. Rb1 {[%emt 0:00:26]} Rgc8 {[%emt 0:00:12]} 63. Bd1 {[%emt 0:01:13]} Rd7 {[%emt 0:00:43]} 64. Bc2 {[%emt 0:00:04]} Bb8 {[%emt 0:00:12]} 65. Ka2 {[%emt 0:00:20]} Ba7 {[%emt 0:00:18]} 66. Ka3 {[%emt 0:00:04]} Ke7 {[%emt 0:00:12]} 67. Ka2 {[%emt 0:00:08]} Rdc7 {[%emt 0:00:38]} 68. Ka3 {[%emt 0:00:09]} Rd8 {[%emt 0:02:05]} 69. Ka2 {[%emt 0:00:04]} Rcc8 {[%emt 0:00:12]} 70. Ka3 {[%emt 0:00:06]} Qc7 {[%emt 0:00:07]} 71. Ka2 {[%emt 0:00:12]} Ne6 {[%emt 0:00:29]} 72. Qe1 {[%emt 0:01:37]} Nd4 {[%emt 0:00:23]} 73. Bd1 {[%emt 0:00:01]} Kf7 {[%emt 0:00:37]} 74. Rd2 {[%emt 0:00:24]} Qd6 {[%emt 0:07:52]} 75. Rdb2 {[%emt 0:00:35]} Rc7 {[%emt 0:00:30]} 76. Rd2 {[%emt 0:00:06]} Rcd7 {[%emt 0:00:30]} 77. Rbb2 {[%emt 0:00:26]} Qe7 {[%emt 0:00:00]} 78. Rb1 {[%emt 0:00:06]} Bb8 {[%emt 0:00:00]} 79. Rg2 {[%emt 0:01:02]} Kg7 {[%emt 0:00:00]} 80. Rd2 {[%emt 0:00:04]} Ba7 {[%emt 0:00:00]} 81. Rbb2 {[%emt 0:00:11]} Rd6 {[%emt 0:00:00]} 82. Rb1 {[%emt 0:04:49]} Qc7 {[%emt 0:00:00]} 83. Rbb2 {[%emt 0:00:00]} Qd7 {[%emt 0:00:00]} 84. Ka3 {[%emt 0:00:00]} Rc8 {[%emt 0:00:00]} 85. Ka2 {[%emt 0:00:00]} Qc7 {[%emt 0:00:00]} 86. Rg2 {[%emt 0:00:00]} Rd7 {[%emt 0:00:00]} 87. Rgd2 {[%emt 0:00:00]} Qd6 {[%emt 0:00:00]} 88. Rb1 {[%emt 0:00:00]} Rdc7 {[%emt 0:00:00]} 89. Rg2 {[%emt 0:00:55]} Kg6 {[%emt 0:00:00]} 90. Rgb2 {[%emt 0:00:37]} Nb3 {[%emt 0:00:34]} 91. Bxb3 {[%emt 0:01:09]} cxb3+ {[%emt 0:00:05]} 92. Rxb3 {[%emt 0:00:03]} Rc4 {[%emt 0:00:04]} 93. Bb2 {[%emt 0:01:30]} Qc7 {[%emt 0:00:30]} 94. Rd1 {[%emt 0:00:23]} Rc2 {[%emt 0:00:15]} 95. Rd2 {[%emt 0:00:11]} Rc4 {[%emt 0:00:55]} 96. Rdd3 {[%emt 0:01:31]} Qd6 {[%emt 0:00:19]} 97. Ka3 {[%emt 0:00:38]} Qc7 {[%emt 0:00:22]} 98. Ka2 {[%emt 0:00:04]} Qd6 {[%emt 0:00:05]} 99. Ka3 {[%emt 0:00:07]} Bc5 {[%emt 0:00:13]} 100. Bc3 {[%emt 0:00:30]} Bd4 {[%emt 0:00:47]} 101. Bxd4 {[%emt 0:01:03]} exd4 {[%emt 0:00:02]} 102. Qf2 {[%emt 0:00:39]} Qe5 {[%emt 0:01:04]} 103. Rb2 {[%emt 0:00:16]} Rc3+ {[%emt 0:00:42]} 104. Rxc3 {[%emt 0:00:06]} dxc3 {[%emt 0:00:08]} 105. Rc2 {[%emt 0:00:03]} Rc4 {[%emt 0:00:10]} 106. Qb6 {[%emt 0:00:32]} Qe7 {[%emt 0:00:51]} 107. d6 {[%emt 0:00:02]} Qe6 {[%emt 0:00:05]} 108. d7 {[%emt 0:01:46]} Qxd7 {[%emt 0:00:15]} 109. e5 {[%emt 0:00:04]} Rf4 {[%emt 0:01:21]} 110. exf6 {[%emt 0:00:55]} Qd1 {[%emt 0:00:52]} 111. f7+ {[%emt 0:00:05]} Kxf7 {[%emt 0:00:09]} 112. Qc7+ {[%emt 0:00:19]} Kg6 {[%emt 0:00:07]} 113. Qc6+ {[%emt 0:00:17]} Rf6 {[%emt 0:00:09]} 114. Qe8+ {[%emt 0:00:36]} Kg7 {[%emt 0:03:14]} 115. Qe7+ {[%emt 0:00:05]} Kg6 {[%emt 0:00:02]} 116. Qe8+ {[%emt 0:00:07]} Kg7 {[%emt 0:00:18]} 1/2-1/2

[Event "Charlotte CC Fall GM-ALTO 2024"]
[Site "Charlotte"]
[Date "2024.11.25"]
[Round "7.4"]
[White "Fernandez, Daniel Howard"]
[Black "Wang, Tianqi"]
[Result "1/2-1/2"]
[ECO "C26"]
[WhiteElo "2503"]
[BlackElo "2323"]
[Annotator "TA"]
[PlyCount "85"]
[EventDate "2024.11.22"]
[EventType "tourn"]
[EventCountry "USA"]
[SourceTitle "playchess.com"]
[Source "ChessBase"]
[SourceQuality "1"]
[TimeControl "5400+30"]

{[%evp 9,85,-26,3,0,18,15,14,17,13,17,20,17,14,12,4,17,42,45,60,57,50,52,79,48,68,3,7,4,26,18,8,18,14,6,14,13,36,33,45,-16,-10,-36,-33,-25,-23,-24,0,-75,-74,-69,-69,-148,-65,-66,-66,-47,-64,-100,-29,-20,-29,-26,-22,-24,-33,-33,-44,-46,-51,-49,-12,-37,0,0,0,0,0,0]} 1. e4 {[%emt 0:04:57]} e5 {[%emt 0:03:32]} 2. Nc3 {[%emt 0:00:10]} Nf6 {[%emt 0:00:10]} 3. d4 {[%emt 0:00:11]} exd4 {[%emt 0:05:48]} 4. Qxd4 {[%emt 0:00:02]} Nc6 {[%emt 0:00:21]} 5. Qd3 {[%emt 0:00:02]} d5 {[%emt 0:10:25]} 6. Bf4 {[%emt 0:00:20]} dxe4 {[%emt 0:07:41]} 7. Qxd8+ {[%emt 0:00:14]} Nxd8 {[%emt 0:00:26]} 8. Bxc7 {[%emt 0:00:31]} Bb4 {[%emt 0:02:42]} 9. O-O-O {[%emt 0:02:23]} Bg4 {[%emt 0:13:20]} 10. Bb5+ {[%emt 0:09:32]} Nc6 {[%emt 0:00:31]} 11. f3 {[%emt 0:01:39]} exf3 {[%emt 0:00:46]} 12. gxf3 {[%emt 0:00:03]} Be6 {[%emt 0:01:06]} 13. Nge2 {[%emt 0:00:04]} Rc8 {[%emt 0:00:36]} 14. Bxc6+ {[%emt 0:00:43]} bxc6 {[%emt 0:00:09]} 15. Be5 {[%emt 0:00:11]} Nh5 {[%emt 0:03:52]} 16. a3 {[%emt 0:02:49]} Be7 {[%emt 0:00:20]} 17. Ng3 {[%emt 0:10:05] White is more active.} (17. Rhg1 $14) 17... Nxg3 {[%emt 0:02:18]} 18. hxg3 {[%emt 0:00:04]} O-O {[%emt 0:00:17]} 19. Bd6 {[%emt 0:00:09]} Bxd6 {[%emt 0:00:36]} 20. Rxd6 {[%emt 0:00:04]} Rfd8 {[%emt 0:00:15]} 21. Rxd8+ {[%emt 0:00:54]} Rxd8 $11 {[%emt 0:00:03][%mdl 4096] Endgame. KRB-KRN} 22. Rh4 {[%emt 0:00:15]} h6 {[%emt 0:03:31]} 23. Ra4 {[%emt 0:00:39]} Rd7 {[%emt 0:00:05]} 24. f4 {[%emt 0:05:36]} (24. Ra6 $14) 24... Bg4 {[%emt 0:02:00]} 25. Ra6 {[%emt 0:01:10]} Bf3 {[%emt 0:00:13]} 26. b4 {[%emt 0:00:32]} Kh7 {[%emt 0:00:51]} 27. Ra5 {[%emt 0:02:57]} f6 {[%emt 0:00:40]} 28. Kb2 {[%emt 0:06:25]} (28. Nb1 $1 $11) 28... h5 $17 {[%emt 0:00:44]} 29. a4 {[%emt 0:02:34]} Kh6 {[%emt 0:01:46]} 30. b5 {[%emt 0:00:24] [#]} (30. Rc5 $15) 30... cxb5 {[%emt 0:02:53]} (30... c5 $1 $17 {aiming for ...Kg6.} 31. Ra6 Kg6) 31. Nxb5 $15 {[%emt 0:00:40]} g5 {[%emt 0:02:33] Threatens to win with ...gxf4.} 32. Ra6 {[%emt 0:01:11]} Kg7 {[%emt 0:05:17]} 33. Nd6 {[%emt 0:07:38]} gxf4 {[%emt 0:04:12]} ({Black should play} 33... Be2 $17 34. Rc6 gxf4 35. gxf4 Kg6) 34. Nf5+ $1 $11 {[%emt 0:00:12]} Kf7 {[%emt 0:00:23]} 35. gxf4 {[%emt 0:00:18]} Bg4 {[%emt 0:01:26]} 36. Nh4 {[%emt 0:00:23]} Be2 {[%emt 0:00:57]} 37. Ra5 {[%emt 0:00:31]} a6 {[%emt 0:00:10]} 38. Kc3 {[%emt 0:00:25]} Rd1 {[%emt 0:00:56]} 39. Nf5 {[%emt 0:05:09]} Rh1 {[%emt 0:13:51]} 40. Nd4 {[%emt 0:01:54]} Bg4 {[%emt 0:02:27]} 41. Rxa6 {[%emt 0:03:36] The position is equal.} h4 {[%emt 0:00:54]} 42. Ra8 {[%emt 0:01:41]} Kg7 {[%emt 0:00:34]} 43. Ra7+ {[%emt 0:01:56] Weighted Error Value: White=0.14 (very precise) /Black=0.14 (very precise) .  Mistake:       	White=4     	Black=2      Inaccurate:     	White=3     	Black=3      OK:         	White=17    	Black=16     Best:        	White=1     	Black=2      Strong:       	White=1     	---} 1/2-1/2

[Event "Charlotte CC Fall GM-ALTO 2024"]
[Site "Charlotte"]
[Date "2024.11.26"]
[Round "8.1"]
[White "Stremavicius, Titas"]
[Black "Gedajlovic, Max"]
[Result "1/2-1/2"]
[ECO "A13"]
[WhiteElo "2545"]
[BlackElo "2377"]
[Annotator "TA"]
[PlyCount "99"]
[EventDate "2024.11.22"]
[EventType "tourn"]
[EventCountry "USA"]
[SourceTitle "playchess.com"]
[Source "ChessBase"]
[SourceQuality "1"]
[TimeControl "5400+30"]

{[%evp 11,99,0,22,3,8,8,24,28,27,25,63,70,65,55,38,36,54,52,42,33,45,50,64,70,77,74,68,44,41,8,93,85,103,27,53,38,47,15,23,2,0,9,94,0,0,0,0,0,6,0,0,0,0,0,0,0,3,4,25,14,20,18,22,14,24,8,8,7,8,0,8,8,8,0,0,0,0,0,8,8,16,16,16,16,17,19,60,60,60,-8]} 1. c4 {[%emt 0:00:57]} e6 {[%emt 0:00:13]} 2. Nf3 {[%emt 0:00:08]} d5 {[%emt 0:00:12]} 3. e3 {[%emt 0:00:08]} Nf6 {[%emt 0:00:28]} 4. Nc3 {[%emt 0:00:06]} Be7 {[%emt 0:01:54]} 5. b3 {[%emt 1:31:41]} O-O {[%emt 0:00:38]} 6. Bb2 {[%emt 0:00:00]} b6 {[%emt 0:04:20]} 7. cxd5 {[%emt 0:00:00]} exd5 {[%emt 0:00:51]} 8. d4 {[%emt 0:00:00]} Ba6 {[%emt 0:02:44]} 9. Bxa6 {[%emt 0:00:00] White has an edge.} Nxa6 {[%emt 0:00:10]} 10. Ne5 {[%emt 0:00:00]} Nb8 {[%emt 0:04:20]} 11. O-O {[%emt 0:00:00]} c6 {[%emt 0:07:09]} 12. Rc1 {[%emt 0:00:00]} Nfd7 {[%emt 0:02:04]} 13. Ne2 {[%emt 0:00:00]} Nxe5 {[%emt 0:01:46]} 14. dxe5 {[%emt 0:00:00]} Qd7 {[%emt 0:00:42]} 15. Qd3 {[%emt 0:00:00]} a5 {[%emt 0:01:42]} 16. e4 {[%emt 0:00:00]} Rd8 {[%emt 0:09:22]} 17. Qg3 {[%emt 0:00:00][%cal Oe5e6] [#] Threatens to win with e6!} Bf8 $1 {[%emt 0:15:18]} 18. exd5 {[%emt 0:00:00]} cxd5 {[%emt 0:02:32]} 19. Nd4 {[%emt 0:00:00][%cal Oe5e6] Wards off Nc6} Na6 {[%emt 0:02:29][%cal Bb8a6,Ba6c5,Bc5e4,Be4d2][%mdl 32]} 20. Rc6 {[%emt 0:00:00]} Rdc8 {[%emt 0:03:43]} (20... b5 $11 {remains equal.}) 21. Rxb6 $16 {[%emt 0:00:00] White is much more active.} Nc5 {[%emt 0:01:28]} 22. h3 {[%emt 0:00:00]} (22. a4 $16) 22... a4 $11 {[%emt 0:01:18]} 23. b4 {[%emt 0:00:00]} Ne4 {[%emt 0:00:41]} 24. Qd3 {[%emt 0:00:00]} Qc7 {[%emt 0:15:54][%csl LRb6,LRe5]} 25. Rb5 {[%emt 0:00:00]} Qxe5 {[%emt 0:00:44]} 26. Ba1 {[%emt 0:00:00]} Qf4 {[%emt 0:06:46]} (26... a3 $11) 27. Ne2 {[%emt 0:00:00]} ({White should play} 27. Rxd5 $16 {g3 would now be deadly.} Rc1 28. Nf3) 27... Qd2 {[%emt 0:00:53]} 28. Qxd2 {[%emt 0:01:00]} Nxd2 {[%emt 0:00:15]} 29. Rc1 {[%emt 0:00:06]} a3 {[%emt 0:02:03]} 30. Rxd5 {[%emt 0:01:52]} Rxc1+ {[%emt 0:02:10]} 31. Nxc1 {[%emt 0:00:03]} Bxb4 {[%emt 0:00:09]} 32. Nd3 {[%emt 0:04:44]} Bf8 {[%emt 0:00:29]} 33. Bc3 {[%emt 0:00:35]} Ne4 {[%emt 0:00:36]} 34. Bb4 {[%emt 0:01:09]} h6 {[%emt 0:03:05]} 35. Ra5 {[%emt 0:01:51]} Rxa5 {[%emt 0:05:49]} 36. Bxa5 {[%emt 0:00:02][%mdl 4096] Endgame. KBN-KBN} f5 {[%emt 0:00:16]} 37. Kf1 {[%emt 0:00:23]} Kf7 {[%emt 0:00:07]} 38. Ke2 {[%emt 0:00:18]} g5 {[%emt 0:01:12]} 39. Ke3 {[%emt 0:01:16]} Bg7 {[%emt 0:02:35]} 40. g4 {[%emt 0:00:54]} Ke6 {[%emt 0:00:36]} 41. Bb4 {[%emt 0:00:41]} Nc3 {[%emt 0:00:29]} 42. Bxa3 {[%emt 0:01:57]} fxg4 {[%emt 0:00:25]} 43. hxg4 {[%emt 0:00:12]} Nxa2 {[%emt 0:00:17]} 44. Nc5+ {[%emt 0:00:20]} Kd5 {[%emt 0:00:35] aiming for ...Bd4+.} 45. Ne4 $1 {[%emt 0:00:31]} Nc3 {[%emt 0:00:50]} 46. Nxc3+ {[%emt 0:00:25]} Bxc3 {[%emt 0:00:02]} 47. Bf8 {[%emt 0:00:30]} Bd4+ {[%emt 0:00:30]} 48. Kf3 {[%emt 0:00:30]} Ke6 {[%emt 0:00:30]} 49. Bxh6 {[%emt 0:00:30]} Kf6 {[%emt 0:00:30] [#]} 50. Bxg5+ {[%emt 0:00:30] Weighted Error Value: White=0.11 (very precise) /Black=0.12 (very precise) .  Mistake:       	White=3     	Black=2      Inaccurate:     	White=2     	Black=2      OK:         	White=14    	Black=19     Best:        	White=2     	Black=2      Strong:       	White=1     	Black=1} 1/2-1/2

[Event "Charlotte CC Fall GM-ALTO 2024"]
[Site "Charlotte"]
[Date "2024.11.25"]
[Round "8.2"]
[White "Wang, Tianqi"]
[Black "Ouellet, Maili-Jade"]
[Result "1/2-1/2"]
[ECO "E18"]
[WhiteElo "2323"]
[BlackElo "2352"]
[Annotator "RC"]
[PlyCount "22"]
[EventDate "2024.11.22"]
[EventType "tourn"]
[EventCountry "USA"]
[SourceTitle "playchess.com"]
[Source "ChessBase"]
[SourceQuality "1"]
[TimeControl "5400+30"]

1. c4 {[%emt 0:00:44]} e6 {[%emt 0:00:12]} 2. g3 {[%emt 0:00:07]} Nf6 {[%emt 0:00:06]} 3. Bg2 {[%emt 0:00:07]} d5 {[%emt 0:00:03]} 4. Nf3 {[%emt 0:00:07]} Be7 {[%emt 0:00:04]} 5. O-O {[%emt 0:00:10]} O-O {[%emt 0:00:07]} 6. b3 {[%emt 0:00:24]} b6 {[%emt 0:00:45]} 7. d4 {[%emt 0:00:13]} Bb7 {[%emt 0:01:55]} 8. Nc3 {[%emt 0:00:23]} c5 {[%emt 0:07:49]} 9. dxc5 {[%emt 0:00:36]} bxc5 {[%emt 0:02:01]} 10. cxd5 {[%emt 0:02:20]} exd5 {[%emt 0:00:29]} 11. e3 {[%emt 0:00:08]} Re8 {[%emt 0:04:49]} 1/2-1/2

[Event "Charlotte CC Fall GM-ALTO 2024"]
[Site "Charlotte"]
[Date "2024.11.26"]
[Round "8.3"]
[White "Griffith, Kyron"]
[Black "Fernandez, Daniel Howard"]
[Result "1/2-1/2"]
[ECO "B56"]
[WhiteElo "2407"]
[BlackElo "2503"]
[Annotator "RC"]
[PlyCount "196"]
[EventDate "2024.11.22"]
[EventType "tourn"]
[EventCountry "USA"]
[SourceTitle "playchess.com"]
[Source "ChessBase"]
[SourceQuality "1"]
[TimeControl "5400+30"]

1. e4 {[%emt 0:00:22]} c5 {[%emt 0:18:58]} 2. Nf3 {[%emt 0:00:08]} d6 {[%emt 0:00:03]} 3. d4 {[%emt 0:00:10]} cxd4 {[%emt 0:01:03]} 4. Nxd4 {[%emt 0:00:06]} Nf6 {[%emt 0:00:04]} 5. Nc3 {[%emt 0:00:05]} Nc6 {[%emt 0:02:25]} 6. f3 {[%emt 0:00:17]} e5 {[%emt 0:07:12]} 7. Nb3 {[%emt 0:00:22]} Be6 {[%emt 0:00:21]} 8. Be3 {[%emt 0:00:12]} Be7 {[%emt 0:03:37]} 9. Qe2 {[%emt 0:00:08]} a5 {[%emt 0:04:20]} 10. O-O-O {[%emt 0:00:58]} a4 {[%emt 0:01:18]} 11. Nc5 {[%emt 0:01:57]} a3 {[%emt 0:00:03]} 12. b3 {[%emt 0:04:28]} Qc8 {[%emt 0:23:56]} 13. Nxe6 {[%emt 0:04:49]} fxe6 {[%emt 0:00:03]} 14. Qc4 {[%emt 0:03:05]} Kf7 {[%emt 0:01:10]} 15. Be2 {[%emt 0:07:32]} Nb4 {[%emt 0:07:04]} 16. Kb1 {[%emt 0:03:37]} Rd8 {[%emt 0:02:51]} 17. Nb5 {[%emt 0:10:17]} Nc6 {[%emt 0:00:48]} 18. c3 {[%emt 0:06:41]} d5 {[%emt 0:00:21]} 19. exd5 {[%emt 0:00:27]} exd5 {[%emt 0:00:03]} 20. Qd3 {[%emt 0:00:09]} Kg8 {[%emt 0:03:04]} 21. g4 {[%emt 0:04:39]} Kh8 {[%emt 0:00:44]} 22. g5 {[%emt 0:03:53]} Nh5 {[%emt 0:00:25]} 23. g6 {[%emt 0:01:03]} d4 {[%emt 0:05:27]} 24. Bc1 {[%emt 0:05:34]} h6 {[%emt 0:06:28]} 25. Rhg1 {[%emt 0:08:43]} Nf4 {[%emt 0:01:09]} 26. Bxf4 {[%emt 0:01:26]} exf4 {[%emt 0:00:02]} 27. cxd4 {[%emt 0:04:50]} Bf6 {[%emt 0:00:59]} 28. Qc4 {[%emt 0:06:31]} Qf5+ {[%emt 0:02:24]} 29. Qc2 {[%emt 0:03:43]} Qh5 {[%emt 0:00:03]} 30. Rg4 {[%emt 0:01:54]} Ra5 {[%emt 0:08:29]} 31. Qc4 {[%emt 0:13:30]} Qxh2 {[%emt 0:00:25]} 32. Rgg1 {[%emt 0:01:52]} Rxb5 {[%emt 0:00:35]} 33. Qxb5 {[%emt 0:00:05]} Nxd4 {[%emt 0:00:10]} 34. Qd3 {[%emt 0:00:24]} Re8 {[%emt 0:00:08]} 35. Rge1 {[%emt 0:00:16]} Nxe2 {[%emt 0:00:17]} 36. Rc1 {[%emt 0:01:21]} Nc3+ {[%emt 0:01:16]} 37. Qxc3 {[%emt 0:00:12]} Rg8 {[%emt 0:00:04]} 38. Qc2 {[%emt 0:00:19]} Qg3 {[%emt 0:00:25]} 39. Qd3 {[%emt 0:00:28]} b5 {[%emt 0:00:36]} 40. Re2 {[%emt 0:00:16]} b4 {[%emt 0:00:03]} 41. Rce1 {[%emt 0:00:58]} Bc3 {[%emt 0:00:12]} 42. Rd1 {[%emt 0:00:25]} Bf6 {[%emt 0:01:04]} 43. Qe4 {[%emt 0:00:03]} Qg5 {[%emt 0:00:40]} 44. Rc2 {[%emt 0:01:13]} Bc3 {[%emt 0:01:03]} 45. Qe6 {[%emt 0:00:15]} Rf8 {[%emt 0:00:10]} 46. Re2 {[%emt 0:00:35]} Bf6 {[%emt 0:00:53]} 47. Qe4 {[%emt 0:01:05]} Rg8 {[%emt 0:00:09]} 48. Rc2 {[%emt 0:01:36]} Bc3 {[%emt 0:00:18]} 49. Rf1 {[%emt 0:00:15]} Qd8 {[%emt 0:00:49]} 50. Re2 {[%emt 0:00:24]} Bf6 {[%emt 0:00:42]} 51. Rc1 {[%emt 0:00:19]} Qd6 {[%emt 0:00:29]} 52. Rec2 {[%emt 0:00:24]} Bc3 {[%emt 0:00:19]} 53. Re2 {[%emt 0:00:38]} Qd7 {[%emt 0:00:41]} 54. Rh1 {[%emt 0:01:22]} Bf6 {[%emt 0:00:33]} 55. Rc1 {[%emt 0:00:27]} Bc3 {[%emt 0:00:03]} 56. Rh1 {[%emt 0:00:03]} Bf6 {[%emt 0:00:21]} 57. Rc2 {[%emt 0:00:58]} Qd6 {[%emt 0:00:50]} 58. Re1 {[%emt 0:00:14]} Bc3 {[%emt 0:00:18]} 59. Qe6 {[%emt 0:00:25]} Qd8 {[%emt 0:00:39]} 60. Rh1 {[%emt 0:00:06]} Rf8 {[%emt 0:00:31]} 61. Qe4 {[%emt 0:01:06]} Qd7 {[%emt 0:00:32]} 62. Re2 {[%emt 0:00:35]} Rg8 {[%emt 0:00:27]} 63. Rc2 {[%emt 0:00:53]} Rf8 {[%emt 0:00:04]} 64. Re2 {[%emt 0:00:27]} Rg8 {[%emt 0:00:02]} 65. Rc1 {[%emt 0:00:22]} Qd6 {[%emt 0:00:32]} 66. Rh2 {[%emt 0:00:37]} Qd7 {[%emt 0:00:26]} 67. Re2 {[%emt 0:00:37]} Qd6 {[%emt 0:00:03]} 68. Rh1 {[%emt 0:00:38]} Qd7 {[%emt 0:00:16]} 69. Qxf4 {[%emt 0:00:31]} Qd3+ {[%emt 0:00:11]} 70. Rc2 {[%emt 0:00:02]} Qxg6 {[%emt 0:00:30]} 71. Qg4 {[%emt 0:00:08]} Kh7 {[%emt 0:02:46]} 72. Qxg6+ {[%emt 0:00:49]} Kxg6 {[%emt 0:00:02]} 73. Rg2+ {[%emt 0:00:10]} Kh7 {[%emt 0:00:56]} 74. Kc2 {[%emt 0:00:24]} Rf8 {[%emt 0:00:06]} 75. Rh3 {[%emt 0:00:07]} Rf5 {[%emt 0:00:52]} 76. Kd3 {[%emt 0:00:36]} g5 {[%emt 0:00:28]} 77. Rgh2 {[%emt 0:00:36]} Bg7 {[%emt 0:00:03]} 78. Kc4 {[%emt 0:00:11]} Rf4+ {[%emt 0:00:06]} 79. Kb5 {[%emt 0:00:09]} Kg6 {[%emt 0:00:12]} 80. Rc2 {[%emt 0:00:32]} Bc3 {[%emt 0:00:35]} 81. Rch2 {[%emt 0:00:06]} Bg7 {[%emt 0:00:06]} 82. Rc2 {[%emt 0:00:04]} h5 {[%emt 0:01:24]} 83. Rc4 {[%emt 0:01:42]} Rxc4 {[%emt 0:01:10]} 84. Kxc4 {[%emt 0:00:03]} Bc3 {[%emt 0:00:28]} 85. Kd3 {[%emt 0:00:18]} g4 {[%emt 0:00:09]} 86. fxg4 {[%emt 0:00:06]} hxg4 {[%emt 0:00:05]} 87. Rh1 {[%emt 0:00:15]} Kf5 {[%emt 0:00:13]} 88. Ke3 {[%emt 0:00:06]} Bf6 {[%emt 0:00:47]} 89. Rh7 {[%emt 0:01:31]} Bg5+ {[%emt 0:00:49]} 90. Kf2 {[%emt 0:00:14]} Bf4 {[%emt 0:00:55]} 91. Rb7 {[%emt 0:00:30]} Bd2 {[%emt 0:00:11]} 92. Ke2 {[%emt 0:00:22]} Bc3 {[%emt 0:00:04]} 93. Ke3 {[%emt 0:00:03]} Kg5 {[%emt 0:00:38]} 94. Rb5+ {[%emt 0:00:11]} Kh4 {[%emt 0:00:08]} 95. Kf2 {[%emt 0:00:08]} Bd4+ {[%emt 0:00:16]} 96. Kg2 {[%emt 0:00:13]} Bc3 {[%emt 0:00:03]} 97. Rd5 {[%emt 0:00:27]} Bf6 {[%emt 0:00:13]} 98. Rc5 {[%emt 0:00:23]} Bd4 {[%emt 0:00:08]} 1/2-1/2